[Event "Titled Tuesday Blitz July 6 2021"]
[White "Rostovtsev, Dmitry"]
[Black "Bluebaum, Matthias"]
[WhiteFideId "34278320"]
[BlackFideId "24651516"]
[WhiteElo "2114"]
[BlackElo "2685"]
[Result "1/2-1/2"]
[Round "06"]
[TimeControl "180+1"]
[Date "2021.07.06"]
[WhiteClock "0:00:02"]
[BlackClock "0:00:56"]

1. e4 {[%clk 0:03:00]}  c6 {[%clk 0:02:55]} 2. d4 {[%clk 0:02:59]}  d5 {[%clk 0:02:56]} 3. e5 {[%clk 0:03:00]}  Bf5 {[%clk 0:02:54]} 4. Nf3 {[%clk 0:03:01]}  e6 {[%clk 0:02:54]} 5. Be2 {[%clk 0:03:01]}  c5 {[%clk 0:02:53]} 6. Be3 {[%clk 0:03:01]}  Nd7 {[%clk 0:02:54]} 7. O-O {[%clk 0:02:59]}  Ne7 {[%clk 0:02:54]} 8. c4 {[%clk 0:02:45]}  dxc4 {[%clk 0:02:51]} 9. Na3 {[%clk 0:02:40]}  c3 {[%clk 0:02:49]} 10. bxc3 {[%clk 0:02:31]}  Nd5 {[%clk 0:02:48]} 11. Bg5 {[%clk 0:02:18]}  Be7 {[%clk 0:02:47]} 12. Bxe7 {[%clk 0:02:10]}  Qxe7 {[%clk 0:02:48]} 13. Nb5 {[%clk 0:02:11]}  O-O {[%clk 0:02:48]} 14. Bc4 {[%clk 0:01:34]}  N5b6 {[%clk 0:02:04]} 15. Be2 {[%clk 0:01:31]}  Bg6 {[%clk 0:01:55]} 16. Nd6 {[%clk 0:01:23]}  Nd5 {[%clk 0:01:54]} 17. Qd2 {[%clk 0:00:57]}  b6 {[%clk 0:01:48]} 18. Bc4 {[%clk 0:00:42]}  Nc7 {[%clk 0:01:41]} 19. Rfe1 {[%clk 0:00:42]}  Rad8 {[%clk 0:01:36]} 20. a4 {[%clk 0:00:36]}  Nb8 {[%clk 0:01:36]} 21. a5 {[%clk 0:00:26]}  Nc6 {[%clk 0:01:32]} 22. axb6 {[%clk 0:00:27]}  axb6 {[%clk 0:01:33]} 23. Qf4 {[%clk 0:00:23]}  Bh5 {[%clk 0:01:31]} 24. Reb1 {[%clk 0:00:18]}  cxd4 {[%clk 0:01:29]} 25. Rxb6 {[%clk 0:00:11]}  Bxf3 {[%clk 0:01:29]} 26. gxf3 {[%clk 0:00:11]}  Qd7 {[%clk 0:01:10]} 27. cxd4 {[%clk 0:00:09]}  Ne7 {[%clk 0:01:11]} 28. Ra7 {[%clk 0:00:08]}  Ned5 {[%clk 0:01:00]} 29. Bxd5 {[%clk 0:00:08]}  Nxd5 {[%clk 0:01:01]} 30. Rxd7 {[%clk 0:00:08]}  Nxf4 {[%clk 0:01:02]} 31. Rxd8 {[%clk 0:00:08]}  Rxd8 {[%clk 0:01:03]} 32. Rb7 {[%clk 0:00:06]}  Ra8 {[%clk 0:01:03]} 33. h4 {[%clk 0:00:06]}  Rf8 {[%clk 0:01:01]} 34. Kh2 {[%clk 0:00:04]}  h6 {[%clk 0:01:02]} 35. Rb4 {[%clk 0:00:03]}  Kh7 {[%clk 0:01:01]} 36. Kg3 {[%clk 0:00:03]}  Nd5 {[%clk 0:01:02]} 37. Rb7 {[%clk 0:00:03]}  Kg6 {[%clk 0:01:02]} 38. h5+ {[%clk 0:00:02]}  Kxh5 {[%clk 0:01:03]} 39. Rxf7 {[%clk 0:00:03]}  Rxf7 {[%clk 0:01:03]} 40. Nxf7 {[%clk 0:00:04]}  Kg6 {[%clk 0:01:04]} 41. Nd6 {[%clk 0:00:04]}  Ne7 {[%clk 0:01:04]} 42. Nb5 {[%clk 0:00:02]}  Kg5 {[%clk 0:01:02]} 43. f4+ {[%clk 0:00:02]}  Kh5 {[%clk 0:01:03]} 44. Kf3 {[%clk 0:00:03]}  Kh4 {[%clk 0:01:03]} 45. Ke4 {[%clk 0:00:03]}  Kg4 {[%clk 0:01:02]} 46. f3+ {[%clk 0:00:03]}  Kg3 {[%clk 0:01:03]} 47. Nc3 {[%clk 0:00:04]}  h5 {[%clk 0:01:03]} 48. d5 {[%clk 0:00:03]}  h4 {[%clk 0:01:01]} 49. d6 {[%clk 0:00:02]}  Nc6 {[%clk 0:01:02]} 50. Ne2+ {[%clk 0:00:02]}  Kf2 {[%clk 0:01:02]} 51. Nd4 {[%clk 0:00:03]}  Nd8 {[%clk 0:01:02]} 52. f5 {[%clk 0:00:03]}  exf5+ {[%clk 0:01:02]} 53. Kxf5 {[%clk 0:00:01]}  h3 {[%clk 0:01:03]} 54. e6 {[%clk 0:00:01]}  h2 {[%clk 0:01:03]} 55. e7 {[%clk 0:00:02]}  Nf7 {[%clk 0:01:03]} 56. Ke6 {[%clk 0:00:02]}  h1=Q {[%clk 0:01:04]} 57. e8=Q {[%clk 0:00:02]}  Ng5+ {[%clk 0:01:04]} 58. Kd7 {[%clk 0:00:02]}  Qh3+ {[%clk 0:01:04]} 59. Ne6 {[%clk 0:00:02]}  Nxf3 {[%clk 0:01:04]} 60. Qf7 {[%clk 0:00:02]}  g5 {[%clk 0:00:53]} 61. Ke7 {[%clk 0:00:02]}  g4 {[%clk 0:00:51]} 62. d7 {[%clk 0:00:03]}  Qh4+ {[%clk 0:00:52]} 63. Qf6 {[%clk 0:00:03]}  Qh7+ {[%clk 0:00:52]} 64. Ng7 {[%clk 0:00:03]}  g3 {[%clk 0:00:51]} 65. d8=Q {[%clk 0:00:03]}  g2 {[%clk 0:00:52]} 66. Qdd4+ {[%clk 0:00:03]}  Kg3 {[%clk 0:00:53]} 67. Qdf4+ {[%clk 0:00:03]}  Kh3 {[%clk 0:00:53]} 68. Qxf3+ {[%clk 0:00:03]}  Kh2 {[%clk 0:00:54]} 69. Q6f4+ {[%clk 0:00:04]}  Kh1 {[%clk 0:00:55]} 70. Qxg2+ {[%clk 0:00:02]}  Kxg2 {[%clk 0:00:55]} 71. Qg4+ {[%clk 0:00:02]}  Kh2 {[%clk 0:00:55]} 72. Kf6 {[%clk 0:00:03]}  Qh6+ {[%clk 0:00:55]} 73. Kf7 {[%clk 0:00:03]}  Qh3 {[%clk 0:00:55]} 74. Qg5 {[%clk 0:00:03]}  Qf3+ {[%clk 0:00:55]} 75. Nf5 {[%clk 0:00:02]}  Qd5+ {[%clk 0:00:54]} 76. Kg6 {[%clk 0:00:03]}  Qg2 {[%clk 0:00:55]} 77. Qxg2+ {[%clk 0:00:02]}  Kxg2 {[%clk 0:00:56]} 1/2-1/2


[Site "https://www.chess.com"]

[Event "Titled Tuesday Blitz July 6 2021"]
[White "Saravana, Krishnan P."]
[Black "Vakhlamov, Igor L."]
[WhiteFideId "5018382"]
[BlackFideId "24126748"]
[WhiteElo "2245"]
[BlackElo "2416"]
[Result "1-0"]
[Round "06"]
[TimeControl "180+1"]
[Date "2021.07.06"]
[WhiteClock "0:02:01"]
[BlackClock "0:00:29"]

1. e4 {[%clk 0:03:00]}  c5 {[%clk 0:01:49]} 2. Nf3 {[%clk 0:02:57]}  Nc6 {[%clk 0:01:47]} 3. Bb5 {[%clk 0:02:54]}  e5 {[%clk 0:01:47]} 4. O-O {[%clk 0:02:52]}  Nge7 {[%clk 0:01:46]} 5. a3 {[%clk 0:02:52]}  a6 {[%clk 0:01:45]} 6. Bc4 {[%clk 0:02:52]}  b5 {[%clk 0:01:45]} 7. Bd5 {[%clk 0:02:52]}  d6 {[%clk 0:01:44]} 8. b4 {[%clk 0:02:48]}  cxb4 {[%clk 0:01:44]} 9. d4 {[%clk 0:02:48]}  Nxd5 {[%clk 0:01:22]} 10. exd5 {[%clk 0:02:48]}  Nxd4 {[%clk 0:01:22]} 11. Nxd4 {[%clk 0:02:48]}  exd4 {[%clk 0:01:23]} 12. Qxd4 {[%clk 0:02:42]}  Be7 {[%clk 0:01:16]} 13. Qxg7 {[%clk 0:02:42]}  Bf6 {[%clk 0:01:13]} 14. Re1+ {[%clk 0:02:41]}  Kd7 {[%clk 0:01:13]} 15. Qxf7+ {[%clk 0:02:39]}  Be7 {[%clk 0:01:11]} 16. Bg5 {[%clk 0:02:25]}  Re8 {[%clk 0:01:03]} 17. Qe6+ {[%clk 0:02:15]}  Kc7 {[%clk 0:00:57]} 18. Bxe7 {[%clk 0:02:15]}  Qd7 {[%clk 0:00:45]} 19. Qxd6+ {[%clk 0:02:10]}  Kb7 {[%clk 0:00:33]} 20. Qxd7+ {[%clk 0:02:10]}  Bxd7 {[%clk 0:00:34]} 21. Bxb4 {[%clk 0:02:11]}  Rac8 {[%clk 0:00:32]} 22. Nc3 {[%clk 0:02:07]}  Rc4 {[%clk 0:00:31]} 23. Rxe8 {[%clk 0:02:05]}  Bxe8 {[%clk 0:00:31]} 24. Re1 {[%clk 0:02:06]}  Bg6 {[%clk 0:00:31]} 25. d6 {[%clk 0:02:04]}  Kc6 {[%clk 0:00:28]} 26. Re7 {[%clk 0:02:02]}  Rd4 {[%clk 0:00:26]} 27. Rc7+ {[%clk 0:02:01]}  Kb6 {[%clk 0:00:26]} 28. Bc5+ {[%clk 0:02:01]}  Ka5 {[%clk 0:00:27]} 29. Bxd4 {[%clk 0:02:01]}  h5 {[%clk 0:00:27]} 30. d7 {[%clk 0:02:01]}  h4 {[%clk 0:00:28]} 31. d8=Q {[%clk 0:02:02]}  h3 {[%clk 0:00:29]} 32. Rc4# {[%clk 0:02:01]} 1-0


[Site "https://www.chess.com"]

[Event "Titled Tuesday Blitz July 6 2021"]
[White "Sardana, Rishi"]
[Black "Pereira, Juliano Resende M"]
[WhiteFideId "25004301"]
[BlackFideId "2109816"]
[WhiteElo "2340"]
[BlackElo "2452"]
[Result "1-0"]
[Round "06"]
[TimeControl "180+1"]
[Date "2021.07.06"]
[WhiteClock "0:01:07"]
[BlackClock "0:00:26"]

1. d4 {[%clk 0:02:59]}  Nf6 {[%clk 0:02:57]} 2. Nf3 {[%clk 0:02:59]}  e6 {[%clk 0:02:55]} 3. c4 {[%clk 0:02:56]}  d5 {[%clk 0:02:44]} 4. Nc3 {[%clk 0:02:56]}  Be7 {[%clk 0:02:42]} 5. Bf4 {[%clk 0:02:55]}  O-O {[%clk 0:02:37]} 6. e3 {[%clk 0:02:53]}  c6 {[%clk 0:02:36]} 7. Qc2 {[%clk 0:02:42]}  Re8 {[%clk 0:02:30]} 8. Bd3 {[%clk 0:02:41]}  dxc4 {[%clk 0:02:30]} 9. Bxc4 {[%clk 0:02:41]}  b5 {[%clk 0:02:31]} 10. Bd3 {[%clk 0:02:41]}  Bb7 {[%clk 0:02:31]} 11. Ne4 {[%clk 0:02:12]}  Qa5+ {[%clk 0:02:15]} 12. Nfd2 {[%clk 0:01:56]}  Nd5 {[%clk 0:01:43]} 13. Bd6 {[%clk 0:01:40]}  Nb4 {[%clk 0:01:38]} 14. Bxb4 {[%clk 0:01:38]}  Bxb4 {[%clk 0:01:38]} 15. O-O {[%clk 0:01:37]}  Nd7 {[%clk 0:01:33]} 16. Nb3 {[%clk 0:01:30]}  Qb6 {[%clk 0:01:22]} 17. Nbc5 {[%clk 0:01:29]}  Nf8 {[%clk 0:01:11]} 18. Nd6 {[%clk 0:01:21]}  Bxc5 {[%clk 0:00:54]} 19. dxc5 {[%clk 0:01:21]}  Qc7 {[%clk 0:00:52]} 20. Nxe8 {[%clk 0:01:21]}  Rxe8 {[%clk 0:00:53]} 21. Rfd1 {[%clk 0:01:21]}  Bc8 {[%clk 0:00:49]} 22. Be2 {[%clk 0:01:11]}  e5 {[%clk 0:00:34]} 23. Rd6 {[%clk 0:01:11]}  f5 {[%clk 0:00:32]} 24. Rad1 {[%clk 0:01:10]}  Ng6 {[%clk 0:00:26]} 25. Bh5 {[%clk 0:01:07]} 1-0


[Site "https://www.chess.com"]

[Event "Titled Tuesday Blitz July 6 2021"]
[White "Solon, Nathan"]
[Black "Eynullayev, Atilla"]
[WhiteFideId "2017229"]
[BlackFideId "13413570"]
[WhiteElo "2626"]
[BlackElo "1997"]
[Result "1-0"]
[Round "06"]
[TimeControl "180+1"]
[Date "2021.07.06"]
[WhiteClock "0:00:14"]
[BlackClock "0:00:01"]

1. d4 {[%clk 0:03:00]}  Nf6 {[%clk 0:02:59]} 2. c4 {[%clk 0:02:59]}  e6 {[%clk 0:02:59]} 3. g3 {[%clk 0:02:59]}  d5 {[%clk 0:02:58]} 4. Bg2 {[%clk 0:02:59]}  Bb4+ {[%clk 0:02:56]} 5. Nd2 {[%clk 0:02:58]}  O-O {[%clk 0:02:46]} 6. Nf3 {[%clk 0:02:58]}  b6 {[%clk 0:02:46]} 7. O-O {[%clk 0:02:58]}  Bb7 {[%clk 0:02:47]} 8. a3 {[%clk 0:02:58]}  Bd6 {[%clk 0:02:44]} 9. cxd5 {[%clk 0:02:50]}  exd5 {[%clk 0:02:43]} 10. b4 {[%clk 0:02:45]}  Nbd7 {[%clk 0:02:33]} 11. Bb2 {[%clk 0:02:44]}  Qe7 {[%clk 0:02:19]} 12. Re1 {[%clk 0:02:32]}  Ne4 {[%clk 0:01:44]} 13. Qc2 {[%clk 0:02:31]}  f5 {[%clk 0:01:43]} 14. Rac1 {[%clk 0:02:23]}  Rac8 {[%clk 0:01:16]} 15. e3 {[%clk 0:02:16]}  g5 {[%clk 0:01:05]} 16. Nb1 {[%clk 0:02:03]}  f4 {[%clk 0:00:54]} 17. exf4 {[%clk 0:02:00]}  gxf4 {[%clk 0:00:53]} 18. Nc3 {[%clk 0:01:55]}  fxg3 {[%clk 0:00:49]} 19. hxg3 {[%clk 0:01:52]}  Ndf6 {[%clk 0:00:43]} 20. Ne5 {[%clk 0:01:38]}  Bxe5 {[%clk 0:00:18]} 21. dxe5 {[%clk 0:01:37]}  Ng4 {[%clk 0:00:16]} 22. Nxe4 {[%clk 0:01:32]}  dxe4 {[%clk 0:00:15]} 23. Bxe4 {[%clk 0:00:20]}  Rxf2 {[%clk 0:00:13]} 24. Qb3+ {[%clk 0:00:19]}  Kh8 {[%clk 0:00:12]} 25. Bxb7 {[%clk 0:00:17]}  Rcf8 {[%clk 0:00:06]} 26. e6+ {[%clk 0:00:17]}  Kg8 {[%clk 0:00:05]} 27. Qc3 {[%clk 0:00:16]}  Nf6 {[%clk 0:00:02]} 28. Rf1 {[%clk 0:00:15]}  Qd6 {[%clk 0:00:01]} 29. Rxf2 {[%clk 0:00:14]} 1-0


[Site "https://www.chess.com"]

[Event "Titled Tuesday Blitz July 6 2021"]
[White "Stojanovski, Sandi"]
[Black "Maltsevskaya, Aleksandra"]
[WhiteFideId "1403249"]
[BlackFideId "24174041"]
[WhiteElo "2354"]
[BlackElo "2225"]
[Result "1-0"]
[Round "06"]
[TimeControl "180+1"]
[Date "2021.07.06"]
[WhiteClock "0:00:19"]
[BlackClock "0:00:08"]

1. c4 {[%clk 0:03:00]}  e6 {[%clk 0:01:27]} 2. d4 {[%clk 0:02:55]}  Nf6 {[%clk 0:01:26]} 3. Nc3 {[%clk 0:02:54]}  d5 {[%clk 0:01:25]} 4. cxd5 {[%clk 0:02:52]}  exd5 {[%clk 0:01:25]} 5. Bg5 {[%clk 0:02:52]}  Nbd7 {[%clk 0:01:15]} 6. e3 {[%clk 0:02:51]}  c6 {[%clk 0:01:13]} 7. Bd3 {[%clk 0:02:51]}  h6 {[%clk 0:01:12]} 8. Bh4 {[%clk 0:02:49]}  Be7 {[%clk 0:01:12]} 9. Nf3 {[%clk 0:02:48]}  Ne4 {[%clk 0:01:09]} 10. Bxe7 {[%clk 0:02:41]}  Qxe7 {[%clk 0:01:09]} 11. Qc2 {[%clk 0:02:41]}  Ndf6 {[%clk 0:01:07]} 12. Ne5 {[%clk 0:02:41]}  O-O {[%clk 0:01:07]} 13. O-O {[%clk 0:02:40]}  Re8 {[%clk 0:01:05]} 14. f3 {[%clk 0:02:39]}  Nxc3 {[%clk 0:01:04]} 15. bxc3 {[%clk 0:02:33]}  Nd7 {[%clk 0:01:04]} 16. f4 {[%clk 0:02:22]}  Nf8 {[%clk 0:01:02]} 17. Rae1 {[%clk 0:02:06]}  Bd7 {[%clk 0:01:01]} 18. e4 {[%clk 0:01:53]}  dxe4 {[%clk 0:00:55]} 19. Bxe4 {[%clk 0:01:48]}  Qf6 {[%clk 0:00:54]} 20. f5 {[%clk 0:01:32]}  Rab8 {[%clk 0:00:46]} 21. h3 {[%clk 0:01:26]}  h5 {[%clk 0:00:35]} 22. Qd2 {[%clk 0:01:06]}  c5 {[%clk 0:00:31]} 23. Qf4 {[%clk 0:01:05]}  cxd4 {[%clk 0:00:30]} 24. cxd4 {[%clk 0:01:04]}  Bb5 {[%clk 0:00:28]} 25. Bd5 {[%clk 0:00:34]}  Bxf1 {[%clk 0:00:09]} 26. Bxf7+ {[%clk 0:00:30]}  Qxf7 {[%clk 0:00:10]} 27. Nxf7 {[%clk 0:00:29]}  Rxe1 {[%clk 0:00:10]} 28. Qxb8 {[%clk 0:00:28]}  Kxf7 {[%clk 0:00:11]} 29. Qxb7+ {[%clk 0:00:23]}  Kg8 {[%clk 0:00:11]} 30. Kf2 {[%clk 0:00:23]}  Rd1 {[%clk 0:00:10]} 31. Qb3+ {[%clk 0:00:20]}  Kh8 {[%clk 0:00:08]} 32. Qxd1 {[%clk 0:00:19]} 1-0


[Site "https://www.chess.com"]

[Event "Titled Tuesday Blitz July 6 2021"]
[White "TanitoluwaAps116"]
[Black "Gedajlovic, Max"]
[BlackFideId "2616840"]
[WhiteElo "2380"]
[BlackElo "2137"]
[Result "0-1"]
[Round "06"]
[TimeControl "180+1"]
[Date "2021.07.06"]
[WhiteClock "0:00:02"]
[BlackClock "0:00:33"]

1. d4 {[%clk 0:03:00]}  Nf6 {[%clk 0:02:59]} 2. Bf4 {[%clk 0:02:59]}  e6 {[%clk 0:02:58]} 3. Nf3 {[%clk 0:02:55]}  c5 {[%clk 0:02:59]} 4. e3 {[%clk 0:02:54]}  d5 {[%clk 0:02:45]} 5. Nbd2 {[%clk 0:02:53]}  cxd4 {[%clk 0:02:38]} 6. exd4 {[%clk 0:02:45]}  Nh5 {[%clk 0:02:37]} 7. Be3 {[%clk 0:02:29]}  Bd6 {[%clk 0:02:36]} 8. Ne5 {[%clk 0:02:26]}  Nf6 {[%clk 0:02:26]} 9. g4 {[%clk 0:02:16]}  Nc6 {[%clk 0:02:25]} 10. Bb5 {[%clk 0:02:14]}  Qb6 {[%clk 0:02:23]} 11. c4 {[%clk 0:02:11]}  dxc4 {[%clk 0:02:13]} 12. Bxc6+ {[%clk 0:01:50]}  bxc6 {[%clk 0:02:14]} 13. Ndxc4 {[%clk 0:01:50]}  Bb4+ {[%clk 0:02:10]} 14. Kf1 {[%clk 0:01:48]}  Ba6 {[%clk 0:02:06]} 15. Qb3 {[%clk 0:01:44]}  Be7 {[%clk 0:01:56]} 16. Kg2 {[%clk 0:01:34]}  Qc7 {[%clk 0:01:42]} 17. Rhc1 {[%clk 0:01:31]}  Rb8 {[%clk 0:01:35]} 18. Qa4 {[%clk 0:01:27]}  Bb5 {[%clk 0:01:33]} 19. Qa5 {[%clk 0:01:26]}  Qb7 {[%clk 0:01:27]} 20. f3 {[%clk 0:01:12]}  Nd5 {[%clk 0:01:24]} 21. Bd2 {[%clk 0:01:08]}  f6 {[%clk 0:01:21]} 22. Nd3 {[%clk 0:01:05]}  O-O {[%clk 0:01:07]} 23. b3 {[%clk 0:01:02]}  Rfd8 {[%clk 0:01:02]} 24. Re1 {[%clk 0:00:55]}  Nb6 {[%clk 0:00:56]} 25. Ndb2 {[%clk 0:00:40]}  Rxd4 {[%clk 0:00:53]} 26. Be3 {[%clk 0:00:40]}  Rd5 {[%clk 0:00:52]} 27. Rac1 {[%clk 0:00:29]}  Bxc4 {[%clk 0:00:51]} 28. Nxc4 {[%clk 0:00:28]}  Rxa5 {[%clk 0:00:50]} 29. Nxa5 {[%clk 0:00:28]}  Qd7 {[%clk 0:00:43]} 30. Nxc6 {[%clk 0:00:27]}  Rc8 {[%clk 0:00:41]} 31. Red1 {[%clk 0:00:26]}  Qe8 {[%clk 0:00:40]} 32. Nxe7+ {[%clk 0:00:11]}  Qxe7 {[%clk 0:00:40]} 33. Bxb6 {[%clk 0:00:12]}  Rxc1 {[%clk 0:00:39]} 34. Rxc1 {[%clk 0:00:11]}  axb6 {[%clk 0:00:39]} 35. Rc6 {[%clk 0:00:10]}  b5 {[%clk 0:00:39]} 36. Rb6 {[%clk 0:00:09]}  b4 {[%clk 0:00:38]} 37. Rb8+ {[%clk 0:00:03]}  Kf7 {[%clk 0:00:37]} 38. h3 {[%clk 0:00:04]}  e5 {[%clk 0:00:37]} 39. Rb5 {[%clk 0:00:03]}  Qd6 {[%clk 0:00:35]} 40. Rb7+ {[%clk 0:00:03]}  Kg6 {[%clk 0:00:35]} 41. h4 {[%clk 0:00:03]}  h5 {[%clk 0:00:34]} 42. Kh3 {[%clk 0:00:02]}  Qd5 {[%clk 0:00:33]} 0-1


[Site "https://www.chess.com"]

[Event "Titled Tuesday Blitz July 6 2021"]
[White "Tejedor Fuente, Enrique"]
[Black "Manukian, Artak"]
[WhiteFideId "2299100"]
[BlackFideId "13301373"]
[WhiteElo "2535"]
[BlackElo "2405"]
[Result "1-0"]
[Round "06"]
[TimeControl "180+1"]
[Date "2021.07.06"]
[WhiteClock "0:00:04"]
[BlackClock "0:00:03"]

1. e4 {[%clk 0:02:59]}  c6 {[%clk 0:02:59]} 2. c4 {[%clk 0:02:59]}  e5 {[%clk 0:02:58]} 3. d4 {[%clk 0:02:59]}  d6 {[%clk 0:02:57]} 4. dxe5 {[%clk 0:02:50]}  dxe5 {[%clk 0:02:57]} 5. Qxd8+ {[%clk 0:02:34]}  Kxd8 {[%clk 0:02:58]} 6. Nf3 {[%clk 0:02:35]}  f6 {[%clk 0:02:58]} 7. Be3 {[%clk 0:02:35]}  Be6 {[%clk 0:02:57]} 8. Nbd2 {[%clk 0:02:29]}  Nd7 {[%clk 0:02:56]} 9. O-O-O {[%clk 0:02:25]}  Kc7 {[%clk 0:02:56]} 10. Ne1 {[%clk 0:02:23]}  Bc5 {[%clk 0:02:55]} 11. Nc2 {[%clk 0:02:11]}  Ne7 {[%clk 0:02:41]} 12. Be2 {[%clk 0:01:47]}  g5 {[%clk 0:02:36]} 13. h4 {[%clk 0:01:47]}  h6 {[%clk 0:02:31]} 14. g3 {[%clk 0:01:47]}  Ng6 {[%clk 0:02:29]} 15. hxg5 {[%clk 0:01:47]}  hxg5 {[%clk 0:02:29]} 16. Nf3 {[%clk 0:01:45]}  Bxe3+ {[%clk 0:02:19]} 17. Nxe3 {[%clk 0:01:45]}  Rxh1 {[%clk 0:02:20]} 18. Rxh1 {[%clk 0:01:45]}  Rh8 {[%clk 0:02:20]} 19. Rxh8 {[%clk 0:01:43]}  Nxh8 {[%clk 0:02:21]} 20. b4 {[%clk 0:01:43]}  Nf7 {[%clk 0:02:14]} 21. Kd2 {[%clk 0:01:43]}  Nd6 {[%clk 0:02:11]} 22. Bd3 {[%clk 0:01:43]}  c5 {[%clk 0:02:04]} 23. Kc3 {[%clk 0:01:12]}  cxb4+ {[%clk 0:02:01]} 24. Kxb4 {[%clk 0:01:13]}  b6 {[%clk 0:02:01]} 25. Nd5+ {[%clk 0:01:10]}  Bxd5 {[%clk 0:02:01]} 26. cxd5 {[%clk 0:01:10]}  Nc5 {[%clk 0:02:00]} 27. Ne1 {[%clk 0:01:07]}  Ndxe4 {[%clk 0:01:53]} 28. Bxe4 {[%clk 0:00:46]}  Nxe4 {[%clk 0:01:54]} 29. Nd3 {[%clk 0:00:47]}  Kd6 {[%clk 0:01:46]} 30. Kc4 {[%clk 0:00:44]}  f5 {[%clk 0:01:20]} 31. a3 {[%clk 0:00:21]}  Nf6 {[%clk 0:01:17]} 32. Nb4 {[%clk 0:00:17]}  a5 {[%clk 0:01:16]} 33. Nc6 {[%clk 0:00:10]}  Nxd5 {[%clk 0:01:16]} 34. Nd8 {[%clk 0:00:11]}  Nc7 {[%clk 0:00:45]} 35. Nf7+ {[%clk 0:00:10]}  Ke6 {[%clk 0:00:45]} 36. Nxg5+ {[%clk 0:00:10]}  Kf6 {[%clk 0:00:38]} 37. Nf3 {[%clk 0:00:10]}  Ne6 {[%clk 0:00:34]} 38. Kd5 {[%clk 0:00:03]}  e4 {[%clk 0:00:33]} 39. Nd2 {[%clk 0:00:02]}  Nc5 {[%clk 0:00:31]} 40. Kc6 {[%clk 0:00:02]}  Nd3 {[%clk 0:00:31]} 41. Kxb6 {[%clk 0:00:02]}  Nxf2 {[%clk 0:00:31]} 42. Kxa5 {[%clk 0:00:03]}  e3 {[%clk 0:00:31]} 43. Nf3 {[%clk 0:00:02]}  Nd3 {[%clk 0:00:26]} 44. a4 {[%clk 0:00:02]}  e2 {[%clk 0:00:26]} 45. Kb6 {[%clk 0:00:02]}  e1=Q {[%clk 0:00:26]} 46. Nxe1 {[%clk 0:00:02]}  Nxe1 {[%clk 0:00:27]} 47. a5 {[%clk 0:00:03]}  Nd3 {[%clk 0:00:23]} 48. a6 {[%clk 0:00:03]}  Ne5 {[%clk 0:00:20]} 49. a7 {[%clk 0:00:04]}  Nd7+ {[%clk 0:00:21]} 50. Kb5 {[%clk 0:00:04]}  Ne5 {[%clk 0:00:18]} 51. a8=Q {[%clk 0:00:04]}  Kg5 {[%clk 0:00:19]} 52. Qd5 {[%clk 0:00:04]}  Ng4 {[%clk 0:00:19]} 53. Qd2+ {[%clk 0:00:04]}  Kf6 {[%clk 0:00:18]} 54. Qf4 {[%clk 0:00:03]}  Ne5 {[%clk 0:00:18]} 55. Qh4+ {[%clk 0:00:02]}  Ke6 {[%clk 0:00:18]} 56. Qh6+ {[%clk 0:00:02]}  Kd5 {[%clk 0:00:18]} 57. Qf6 {[%clk 0:00:02]}  Ke4 {[%clk 0:00:18]} 58. Ka5 {[%clk 0:00:02]}  Nc4+ {[%clk 0:00:18]} 59. Kb4 {[%clk 0:00:02]}  Ne3 {[%clk 0:00:18]} 60. Kb3 {[%clk 0:00:02]}  Nf1 {[%clk 0:00:11]} 61. Qe6+ {[%clk 0:00:02]}  Kd4 {[%clk 0:00:07]} 62. Qxf5 {[%clk 0:00:02]}  Nxg3 {[%clk 0:00:07]} 63. Qf4+ {[%clk 0:00:02]}  Ne4 {[%clk 0:00:08]} 64. Ka2 {[%clk 0:00:02]}  Kd3 {[%clk 0:00:08]} 65. Qc1 {[%clk 0:00:02]}  Nc3+ {[%clk 0:00:08]} 66. Kb3 {[%clk 0:00:02]}  Ne4 {[%clk 0:00:08]} 67. Qd1+ {[%clk 0:00:02]}  Ke3 {[%clk 0:00:08]} 68. Kc2 {[%clk 0:00:02]}  Nf2 {[%clk 0:00:07]} 69. Qe1+ {[%clk 0:00:03]}  Kf3 {[%clk 0:00:07]} 70. Qf1 {[%clk 0:00:03]}  Ke3 {[%clk 0:00:07]} 71. Qg2 {[%clk 0:00:03]}  Ne4 {[%clk 0:00:07]} 72. Qh3+ {[%clk 0:00:03]}  Kd4 {[%clk 0:00:07]} 73. Qh4 {[%clk 0:00:02]}  Ke3 {[%clk 0:00:07]} 74. Qg4 {[%clk 0:00:02]}  Nf2 {[%clk 0:00:07]} 75. Qe6+ {[%clk 0:00:02]}  Ne4 {[%clk 0:00:07]} 76. Qe5 {[%clk 0:00:02]}  Kf3 {[%clk 0:00:06]} 77. Kd3 {[%clk 0:00:03]}  Nf2+ {[%clk 0:00:07]} 78. Kd4 {[%clk 0:00:03]}  Ng4 {[%clk 0:00:07]} 79. Qf5+ {[%clk 0:00:03]}  Kg3 {[%clk 0:00:07]} 80. Ke4 {[%clk 0:00:03]}  Nf2+ {[%clk 0:00:07]} 81. Ke3 {[%clk 0:00:03]}  Ng4+ {[%clk 0:00:08]} 82. Ke2 {[%clk 0:00:04]}  Nh2 {[%clk 0:00:03]} 83. Qf2+ {[%clk 0:00:03]}  Kh3 {[%clk 0:00:03]} 84. Qg1 {[%clk 0:00:04]} 1-0


[Site "https://www.chess.com"]